bitfinex/quotes_SOLUSD_20220207
["timestamp","ask_amount","ask_price","bid_price","bid_amount"]
[1644220103815,12.46,117.74,117.64,0.2]
[1644220104111,18.46,117.74,117.64,0.2]
[1644220104714,20.5656109,117.74,117.64,0.2]
[1644220105016,18.46,117.74,117.64,0.2]
[1644220105511,2.1056109,117.73,117.63,0.49689184]
[1644220105711,2.1056109,117.73,117.63,0.29689184]
[1644220105712,12.21,117.72,117.63,0.29689184]
[1644220106014,24.6846,117.71,117.58,2.15397904]
[1644220106210,12.21,117.7,117.58,2.15397904]
[1644220106412,12.21,117.7,117.6,1.73828124]
[1644220106610,18.46,117.7,117.59,43.597808]
[1644220106810,31.2135,117.7,117.59,1.73828124]
[1644220107210,31.2135,117.7,117.58,0.59378368]
[1644220107211,185.8991109,117.7,117.58,0.59378368]
[1644220107414,175.6079,117.69,117.58,0.59378368]
[1644220107612,12.21,117.68,117.58,0.59378368]
[1644220107810,12.46,117.68,117.58,45.38992999]
[1644220108011,18.46,117.68,117.58,45.38992999]
[1644220108513,152.58,117.62,117.46,0.21284486]
[1644220108711,152.38,117.59,117.48,3.7682512]
[1644220108911,4.444,117.52,117.48,3.7682512]
[1644220109711,10.694,117.52,117.48,3.7682512]
[1644220109916,4.694,117.52,117.48,3.7682512]
[1644220110517,4.694,117.52,117.48,44.22572771]
[1644220110914,12.21,117.55,117.48,44.22572771]
[1644220111116,12.21,117.57,117.48,50.22572771]
[1644220111316,12.21,117.58,117.49,0.2]
[1644220111520,2.1056109,117.6,117.48,3.7682512]
[1644220111521,12.21,117.57,117.48,3.7682512]
[1644220111714,12.21,117.56,117.48,3.7682512]
[1644220112115,12.7685,117.55,117.48,3.7682512]
[1644220112319,12.21,117.54,117.48,49.43710043]
[1644220112518,42.5658,117.57,117.49,0.2]
[1644220112519,12.21,117.53,117.49,0.2]
[1644220112715,12.46,117.53,117.49,0.2]
[1644220112915,12.21,117.53,117.49,0.2]
[1644220113117,24.9787,117.55,117.49,0.2]
[1644220113325,12.21,117.55,117.5,43.93580871]
[1644220113518,12.21,117.55,117.51,0.2]
[1644220113718,12.21,117.57,117.51,0.2]
[1644220114319,12.21,117.57,117.52,39.22375444]
[1644220114518,62.18969798,117.6,117.53,0.2]
[1644220114519,12.21,117.59,117.53,0.2]
[1644220115921,30.9746,117.59,117.53,0.2]
[1644220116321,12.21,117.59,117.53,0.2]
[1644220116523,62.18969798,117.6,117.54,1.73354231]
[1644220116721,62.18969798,117.6,117.54,1.98354231]
[1644220116922,62.18969798,117.6,117.55,47.14052685]
[1644220117120,72.10196074,117.66,117.56,0.2]
[1644220117524,12.758,117.65,117.56,0.2]
[1644220117724,12.21,117.64,117.56,0.2]
[1644220118124,20.5656109,117.64,117.56,0.2]
[1644220118323,152.58,117.61,117.48,3.7682512]
[1644220118622,12.7676,117.57,117.48,3.7682512]
[1644220118822,12.46,117.57,117.48,3.7682512]
[1644220119023,18.21,117.57,117.49,34.67151558]
[1644220119223,12.21,117.59,117.5,0.2]
[1644220119626,18.21,117.59,117.5,0.2]
[1644220120024,30.9745,117.59,117.5,0.2]
[1644220120826,31.2245,117.59,117.5,0.2]
[1644220122030,33.3301109,117.59,117.5,0.2]
[1644220122225,185.9101109,117.59,117.5,0.2]
[1644220122430,12.7717,117.56,117.48,3.7682512]
[1644220122628,12.21,117.55,117.48,3.7682512]
[1644220122833,12.46,117.55,117.48,3.7682512]
[1644220123028,18.21,117.55,117.48,3.7682512]
[1644220123228,12.46,117.55,117.49,46.53333342]
[1644220123427,12.46,117.55,117.5,0.2]
[1644220124629,18.46,117.55,117.5,0.2]
[1644220125829,31.2295,117.55,117.5,0.2]
[1644220126028,31.2295,117.55,117.48,3.7682512]
[1644220126429,2.1056109,117.54,117.48,3.7682512]
[1644220126628,12.21,117.53,117.48,3.7682512]
[1644220126829,12.46,117.53,117.48,3.7682512]
[1644220127029,18.46,117.53,117.48,49.13767054]
[1644220127230,18.46,117.53,117.49,0.2]
[1644220127432,31.2331,117.53,117.49,0.2]
[1644220128235,31.2331,117.53,117.48,3.7682512]
[1644220128632,33.3387109,117.53,117.48,3.7682512]
[1644220129135,50.74,117.52,117.46,0.21284486]
[1644220129433,24.9884,117.51,117.46,0.21284486]
[1644220129634,4.255,117.5,117.46,0.21284486]
[1644220129934,12.21,117.49,117.46,0.21284486]
[1644220130136,18.21,117.49,117.46,0.21284486]
[1644220130335,31.2379,117.49,117.46,0.21284486]
[1644220135145,30.9879,117.49,117.46,0.21284486]
[1644220135548,152.58,117.48,117.46,0.21284486]
[1644220135747,24.9912,117.47,117.46,0.21284486]
[1644220136172,30.9912,117.47,117.46,0.21284486]
[1644220136367,41.4852,117.47,117.46,0.21284486]
[1644220137368,43.5908109,117.47,117.46,0.21284486]
[1644220137969,41.4852,117.47,117.46,0.21284486]
[1644220139468,10.244,117.47,117.46,0.21284486]
[1644220139668,2.1056109,117.51,117.47,46.15637887]
[1644220139871,8.87797683,117.55,117.48,0.2]
[1644220141270,8.87797683,117.55,117.47,45.60637887]
[1644220141471,12.7667,117.59,117.47,45.60637887]
[1644220141670,12.7667,117.59,117.47,47.34518344]
[1644220141871,6.22967,117.58,117.47,47.34518344]
[1644220142070,6.22967,117.58,117.47,45.60637887]
[1644220142269,6.22967,117.58,117.46,0.21284486]
[1644220142270,31.20787,117.58,117.46,0.21284486]
[1644220142473,6.3586109,117.57,117.46,0.21284486]
[1644220142671,12.21,117.56,117.46,0.21284486]
[1644220142872,14.3156109,117.56,117.46,0.21284486]
[1644220143273,20.7952809,117.56,117.46,0.21284486]
[1644220143470,77.5352809,117.56,117.46,0.21284486]
[1644220143670,12.7729,117.54,117.46,0.21284486]
[1644220144072,43.1002,117.54,117.46,0.21284486]
[1644220144270,14.3156109,117.53,117.46,0.21284486]
[1644220144671,30.8366109,117.52,117.46,0.21284486]
[1644220144871,98.8306,117.51,117.46,0.21284486]
[1644220145073,4.255,117.5,117.46,0.21284486]
[1644220145270,12.21,117.49,117.46,0.21284486]
[1644220145670,18.46,117.49,117.46,0.21284486]
[1644220146073,31.2396,117.49,117.46,0.21284486]
[1644220148283,33.3452109,117.49,117.46,0.21284486]
[1644220149375,33.0952109,117.49,117.46,0.21284486]
[1644220149575,30.9896,117.49,117.46,0.21284486]
[1644220149981,0.5776,117.48,117.46,0.21284486]
[1644220151680,13.3569,117.48,117.46,0.21284486]
[1644220152079,12.21,117.47,117.46,0.21284486]
[1644220152281,12.46,117.47,117.46,0.21284486]
[1644220152480,18.46,117.47,117.46,0.21284486]
[1644220153481,18.5376,117.47,117.46,0.21284486]
[1644220155884,12.64451767,117.47,117.46,0.21284486]
[1644220156285,35.91341767,117.47,117.46,0.21284486]
[1644220160787,38.01902857,117.47,117.46,0.21284486]
[1644220162190,60.54992857,117.47,117.46,0.21284486]
[1644220163390,64.80592857,117.47,117.46,0.21284486]
[1644220164390,64.55592857,117.47,117.46,0.21284486]
[1644220165591,115.29592857,117.47,117.46,0.21284486]
[1644220165791,115.54592857,117.47,117.46,0.00284486]
[1644220166003,50.74,117.45,117.36,0.26554342]
[1644220166192,0.30768461,117.42,117.36,0.26554342]
[1644220166393,0.32410174,117.38,117.31,0.92743865]
[1644220166596,12.21,117.37,117.31,0.92743865]
[1644220166893,63.2,117.37,117.31,0.92743865]
[1644220167095,0.30561462,117.32,117.22,0.22308554]
[1644220167392,12.21,117.31,117.22,0.22308554]
[1644220167593,18.21,117.31,117.22,6.49606554]
[1644220167793,20.5656109,117.31,117.22,48.58525741]
[1644220167995,33.3646109,117.31,117.22,48.58525741]
[1644220168193,12.46,117.31,117.22,48.58525741]
[1644220168394,12.46,117.31,117.22,50.31509053]
[1644220168595,18.46,117.31,117.22,50.31509053]
[1644220168796,18.21,117.31,117.22,50.31509053]
[1644220168995,6.0,117.31,117.22,48.58525741]
[1644220169201,6.0,117.33,117.23,1.72983312]
[1644220169397,6.0,117.33,117.24,47.99537541]
[1644220169597,4.263,117.34,117.24,47.99537541]
[1644220169819,0.0776,117.32,117.24,47.99537541]
[1644220170818,0.0776,117.32,117.24,49.72520853]
[1644220171221,0.0776,117.32,117.24,47.99537541]
[1644220171621,11.70227049,117.34,117.24,47.99537541]
[1644220171825,11.95227049,117.34,117.24,49.72520853]
[1644220172422,11.95227049,117.34,117.25,0.2]
[1644220172722,4.263,117.38,117.25,0.2]
[1644220172923,12.21,117.41,117.27,36.71933332]
[1644220173121,12.21,117.41,117.28,0.2]
[1644220173322,12.21,117.41,117.29,44.1131552]
[1644220173521,12.21,117.41,117.3,0.2]
[1644220174122,12.21,117.41,117.32,48.20236605]
[1644220174322,12.21,117.41,117.33,0.2]
[1644220175322,26.83580219,117.41,117.33,0.2]
[1644220175522,4.26,117.4,117.33,0.2]
[1644220175723,12.21,117.39,117.33,0.2]
[1644220176122,18.46,117.39,117.33,0.2]
[1644220178424,18.21,117.39,117.33,0.2]
[1644220178623,49.68031224,117.41,117.33,0.2]
[1644220178624,26.83580219,117.41,117.33,0.2]
[1644220179025,18.21,117.41,117.33,0.2]
[1644220179627,12.21,117.41,117.33,0.2]
[1644220180024,18.21,117.41,117.33,0.2]
[1644220180225,12.21,117.41,117.33,0.2]
[1644220180425,18.21,117.41,117.33,0.2]
[1644220181027,6.0,117.41,117.33,0.2]
[1644220181226,23.7651,117.43,117.33,0.2]
[1644220181431,29.7651,117.43,117.33,0.2]
[1644220181627,23.7651,117.43,117.33,0.2]
[1644220182628,0.25,117.43,117.33,0.2]
[1644220182827,41.2187,117.44,117.33,0.2]
[1644220183230,47.2187,117.44,117.33,0.2]
[1644220183429,46.9687,117.44,117.33,0.2]
[1644220184028,42.7097,117.44,117.33,0.2]
[1644220184429,18.21,117.44,117.33,0.2]
[1644220184631,6.0,117.44,117.33,0.2]
[1644220185031,6.0,117.45,117.33,0.2]
[1644220185231,22.469,117.46,117.33,0.2]
[1644220185531,18.21,117.46,117.33,0.2]
[1644220186835,31.5348633,117.46,117.33,0.2]
[1644220187135,41.43030776,117.46,117.33,0.2]
[1644220188137,28.10544446,117.46,117.33,0.2]
[1644220188537,28.10544446,117.46,117.33,1.92551964]
[1644220188736,28.10544446,117.46,117.34,34.23768479]
[1644220188936,28.10544446,117.46,117.35,0.2]
[1644220189538,6.0,117.46,117.35,0.2]
[1644220189841,79.19642304,117.49,117.35,0.2]
[1644220190038,74.93742304,117.49,117.35,0.2]
[1644220190240,44.42744446,117.49,117.37,39.93751574]
[1644220190438,44.42744446,117.49,117.38,0.2]
[1644220190639,21.85544446,117.49,117.38,0.2]
[1644220191541,12.21,117.49,117.38,0.2]
[1644220192640,12.46,117.49,117.38,0.2]
[1644220193243,20.5656109,117.49,117.38,0.2]
[1644220194242,20.3156109,117.49,117.38,0.2]
[1644220194442,12.21,117.49,117.38,0.2]
[1644220194641,18.21,117.49,117.38,0.2]
[1644220194843,20.3156109,117.49,117.38,0.2]
[1644220195148,33.6404742,117.49,117.38,0.2]
[1644220195342,56.06401866,117.49,117.38,0.2]
[1644220195743,56.31401866,117.49,117.38,0.2]
[1644220196045,4.257,117.48,117.38,0.2]
[1644220196243,12.21,117.47,117.38,0.2]
[1644220196644,31.2402,117.47,117.38,0.2]
[1644220198746,30.9902,117.47,117.38,0.2]
[1644220199648,22.42324446,117.49,117.38,0.2]
[1644220199847,35.9711,117.5,117.39,42.2734096]
[1644220200049,12.21,117.52,117.4,0.2]
[1644220200250,4.256,117.54,117.4,0.2]
[1644220200450,4.256,117.56,117.42,45.92046573]
[1644220200648,70.81989771,117.57,117.43,0.2]
[1644220201049,4.255,117.56,117.43,0.2]
[1644220201250,16.465,117.56,117.43,0.2]
[1644220201449,22.465,117.56,117.43,0.2]
[1644220201849,24.1094,117.55,117.43,0.2]
[1644220202248,30.1094,117.55,117.43,0.2]
[1644220203652,42.8808,117.55,117.43,0.2]
[1644220204954,43.1308,117.55,117.43,0.2]
[1644220205955,55.3408,117.55,117.43,0.2]
[1644220206352,59.5958,117.55,117.43,0.2]
[1644220206752,112.5,117.54,117.43,0.2]
[1644220206951,12.7738,117.52,117.43,0.2]
[1644220207152,18.7738,117.52,117.43,0.2]
[1644220207352,19.0238,117.52,117.43,0.2]
[1644220207955,12.21,117.51,117.43,0.2]
[1644220208152,12.21,117.51,117.4,0.2]
[1644220208153,12.7768,117.5,117.4,0.2]
[1644220208353,25.2368,117.5,117.4,0.2]
[1644220208554,31.2368,117.5,117.4,0.2]
[1644220209053,31.2368,117.5,117.4,39.35526293]
[1644220209253,31.2368,117.5,117.41,0.2]
[1644220209453,31.2368,117.5,117.4,0.2]
[1644220212255,48.97370771,117.5,117.4,0.2]
[1644220212454,48.97370771,117.5,117.4,36.19934647]
[1644220212654,48.97370771,117.5,117.39,47.0606]
[1644220212655,48.97370771,117.5,117.41,0.2]
[1644220212854,46.927,117.49,117.36,0.2]
[1644220213059,12.7802,117.47,117.36,0.2]
[1644220213254,13.0302,117.47,117.36,0.2]
[1644220213654,13.0302,117.47,117.36,44.55422755]
[1644220213954,13.0302,117.47,117.37,0.2]
[1644220214556,0.25,117.47,117.37,0.2]
[1644220214761,78.1645,117.49,117.37,0.2]
[1644220215956,72.1645,117.49,117.37,0.2]
[1644220216555,80.2701109,117.49,117.37,0.2]
[1644220217957,78.1645,117.49,117.37,0.2]
[1644220218161,77.9145,117.49,117.37,0.2]
[1644220218485,6.0,117.49,117.39,34.73471057]
[1644220218657,18.7751,117.51,117.4,0.2]
[1644220219457,37.7689,117.5,117.4,0.2]
[1644220219658,43.7689,117.5,117.4,0.2]
[1644220220460,2.1056109,117.34,117.2,9.62349194]
[1644220220658,4.43999999,117.24,117.23,8.69733576]
[1644220220860,4.43999999,117.24,117.22,0.22308554]
[1644220220861,4.68999999,117.24,117.22,0.22308554]
[1644220221060,4.99818181,117.24,117.22,0.22308554]
[1644220221259,17.20818181,117.24,117.17,0.49118512]
[1644220221562,23.20818181,117.24,117.17,0.49118512]
[1644220221759,36.01058181,117.24,117.17,0.49118512]
[1644220221959,152.58,117.21,117.17,0.49118512]
[1644220222160,164.79,117.2,117.17,0.49118512]
[1644220222460,12.21,117.19,117.17,0.49118512]
[1644220223061,25.2679,117.19,117.17,0.49118512]
[1644220223259,25.0179,117.19,117.17,0.49118512]
[1644220223659,25.2679,117.19,117.17,0.49118512]
[1644220223858,25.2679,117.19,117.18,6.06439994]
[1644220224060,37.49757,117.19,117.17,0.49118512]
[1644220224259,31.49757,117.19,117.17,39.98566447]
[1644220224458,31.49757,117.19,117.17,0.49118512]
[1644220224860,25.2679,117.19,117.17,0.49118512]
[1644220225159,25.0179,117.19,117.17,0.49118512]
[1644220225360,25.0179,117.19,117.17,48.96656122]
[1644220225987,25.0179,117.19,117.17,49.16656122]
[1644220226162,31.24757,117.19,117.18,6.06439994]
[1644220226362,29.29757,117.19,117.16,0.2]
[1644220226560,29.29757,117.19,117.13,0.2]
[1644220226561,25.03757,117.19,117.13,0.2]
[1644220226761,19.03757,117.19,117.13,0.2]
[1644220226963,10.26,117.18,117.13,0.2]
[1644220227362,23.069,117.18,117.15,47.08278904]
[1644220227563,23.069,117.18,117.16,0.2]
[1644220228063,6.22967,117.17,117.16,0.2]
[1644220228267,10.26,117.17,117.15,47.28278904]
[1644220228467,3.03219997,117.16,117.15,47.28278904]
[1644220228664,10.51,117.17,117.15,47.08278904]
[1644220228865,10.51,117.17,117.15,47.28278904]
[1644220229265,10.26,117.17,117.15,47.28278904]
[1644220231873,12.809,117.18,117.15,47.28278904]
[1644220232074,10.26,117.17,117.16,0.2]
[1644220232275,12.8067,117.2,117.15,47.28278904]
[1644220232576,10.26,117.19,117.16,0.2]
[1644220232778,10.51,117.19,117.16,0.2]
[1644220232976,6.06439994,117.18,117.16,0.2]
[1644220233177,0.25,117.19,117.16,0.2]
[1644220233378,10.26,117.18,117.16,0.2]
[1644220234197,6.06439994,117.17,117.16,0.2]
[1644220234396,0.25,117.19,117.17,3.03219997]
[1644220234597,6.47967,117.19,117.18,43.74539206]
[1644220234796,10.26,117.19,117.18,43.74539206]
[1644220234999,18.8067,117.2,117.18,43.74539206]
[1644220235197,10.26,117.19,117.18,43.74539206]
[1644220235998,10.26,117.19,117.17,0.2]
[1644220236200,23.3188,117.19,117.13,0.2]
[1644220236702,29.3188,117.19,117.13,0.2]
[1644220236897,0.30642302,117.16,117.13,0.2]
[1644220237097,10.26,117.15,117.13,0.2]
[1644220237297,10.51,117.15,117.12,99.22761178]
[1644220237498,23.3245,117.15,117.12,99.22761178]
[1644220237699,10.51,117.15,117.12,99.22761178]
[1644220237898,10.51,117.15,117.13,40.28743784]
[1644220239101,10.26,117.15,117.13,40.28743784]
[1644220240503,10.26,117.15,117.14,6.06439994]
[1644220241306,10.26,117.15,117.13,40.28743784]
[1644220242009,12.8108,117.18,117.15,43.17414429]
[1644220242201,10.26,117.17,117.15,43.17414429]
[1644220242801,16.26,117.17,117.15,43.17414429]
[1644220243207,16.26,117.17,117.16,6.06439994]
[1644220243404,16.26,117.17,117.15,43.17414429]
[1644220243805,16.26,117.17,117.15,43.37414429]
[1644220244004,16.26,117.17,117.15,43.17414429]
[1644220244403,10.26,117.17,117.16,6.06439994]
[1644220244603,10.26,117.17,117.15,43.17414429]
[1644220244803,10.26,117.17,117.15,43.37414429]
[1644220245004,10.26,117.17,117.15,43.17414429]
[1644220245403,10.26,117.17,117.15,43.37414429]
[1644220245604,10.51,117.17,117.15,43.17414429]
[1644220246003,12.8082,117.2,117.15,43.37414429]
[1644220246203,10.26,117.18,117.16,0.2]
[1644220246409,10.26,117.2,117.16,0.2]
[1644220249208,10.51,117.2,117.16,0.2]
[1644220250509,16.51,117.2,117.16,0.2]
[1644220251307,29.3191,117.2,117.16,0.2]
[1644220254412,29.0691,117.2,117.16,0.2]
[1644220255312,10.26,117.2,117.16,0.2]
[1644220255510,16.26,117.2,117.16,0.2]
[1644220255712,10.26,117.2,117.16,0.2]
[1644220256514,10.51,117.2,117.16,0.2]
[1644220258016,16.26,117.2,117.16,0.2]
[1644220258417,10.26,117.2,117.16,0.2]
[1644220259116,16.26,117.2,117.16,0.2]
[1644220259739,16.51,117.2,117.16,0.2]
[1644220260720,10.51,117.2,117.16,0.2]
[1644220261931,23.3193,117.2,117.16,0.2]
[1644220262119,29.3193,117.2,117.16,0.2]
[1644220263525,29.0693,117.2,117.16,0.2]
[1644220264932,29.3193,117.2,117.15,42.68170513]
[1644220265131,0.1,117.19,117.15,42.68170513]
[1644220265331,23.1704,117.19,117.15,42.68170513]
[1644220265532,0.1,117.18,117.15,42.68170513]
[1644220265931,0.1,117.18,117.12,99.22761178]
[1644220267138,10.26,117.19,117.12,99.22761178]
[1644220267351,0.1,117.18,117.12,99.22761178]
[1644220267751,0.1,117.18,117.13,41.96658829]
[1644220267952,0.1,117.18,117.13,52.14058829]
[1644220269052,0.1,117.2,117.13,52.14058829]
[1644220269254,0.1,117.22,117.13,52.14058829]
[1644220270052,0.1,117.22,117.14,0.1]
[1644220270255,0.1,117.23,117.14,0.1]
[1644220270555,10.36,117.23,117.14,0.1]
[1644220270754,0.1,117.22,117.14,0.1]
[1644220275959,5.744,117.25,117.16,40.0]
[1644220276160,10.26,117.28,117.17,85.0]
[1644220276360,125.3432,117.32,117.18,10.26]
[1644220276659,45.99528048,117.33,117.18,78.9162774]
[1644220276860,49.89893261,117.33,117.19,1.72123809]
[1644220277059,37.10353261,117.33,117.2,5.52100214]
[1644220277260,12.7352,117.35,117.2,5.52100214]
[1644220277261,12.7352,117.35,117.2,16.03100214]
[1644220277462,4.263,117.34,117.2,16.03100214]
[1644220277661,10.263,117.34,117.2,15.78100214]
[1644220277861,10.263,117.34,117.2,16.03100214]
[1644220278261,37.67632148,117.33,117.2,16.03100214]
[1644220278661,43.67632148,117.33,117.2,16.03100214]
[1644220278861,37.67632148,117.33,117.2,15.78100214]
[1644220279061,10.26,117.32,117.2,5.52100214]
[1644220279263,41.72341645,117.31,117.2,5.52100214]
[1644220279464,10.26,117.3,117.14,10.26]
[1644220279664,14.525,117.3,117.14,10.26]
[1644220279863,14.775,117.3,117.14,10.26]
[1644220280165,20.775,117.3,117.14,10.26]
[1644220280366,37.62426645,117.29,117.15,45.93935355]
[1644220280564,4.265,117.28,117.15,45.93935355]
[1644220280762,48.0039625,117.27,117.15,45.93935355]
[1644220280964,60.8058625,117.27,117.15,45.93935355]
[1644220281164,12.3656109,117.29,117.15,45.93935355]
[1644220281463,4.365,117.35,117.16,1.73168218]
[1644220281663,6.0,117.35,117.17,12.454]
[1644220281966,37.5911,117.34,117.18,48.1974]
[1644220282164,43.72388728,117.33,117.19,1.46582599]
[1644220282363,43.72388728,117.33,117.21,17.44790302]
[1644220283464,58.87469818,117.33,117.21,17.44790302]
[1644220283665,69.13769818,117.33,117.21,17.44790302]
[1644220283863,63.13769818,117.33,117.21,17.44790302]
[1644220284063,35.83564947,117.31,117.21,17.44790302]
[1644220284264,36.08564947,117.31,117.21,17.44790302]
[1644220284465,48.88294947,117.31,117.21,17.44790302]
[1644220284865,0.25,117.31,117.21,17.44790302]
[1644220285464,2.1056109,117.33,117.22,4.264]
[1644220285665,23.0671,117.34,117.22,4.264]
[1644220285866,63.26502528,117.34,117.23,7.25647652]
[1644220286066,2.1056109,117.33,117.23,7.25647652]
[1644220286465,23.0671,117.34,117.23,7.25647652]
[1644220286666,32.01803521,117.35,117.23,7.25647652]
[1644220286866,10.36,117.35,117.23,17.15347652]
[1644220287068,0.1,117.35,117.23,17.15347652]
[1644220287269,0.1,117.36,117.24,4.261]
[1644220287669,0.1,117.36,117.25,17.44790302]
[1644220288473,48.65558689,117.37,117.25,17.44790302]
[1644220289572,14.521,117.39,117.25,30.23490302]
[1644220289774,10.26,117.39,117.25,30.48490302]
[1644220289969,16.26,117.39,117.25,30.48490302]
[1644220290373,45.16920772,117.38,117.25,30.48490302]
[1644220290569,51.16920772,117.38,117.25,30.48490302]
[1644220290773,51.16920772,117.38,117.25,17.44790302]
[1644220290970,2.1056109,117.37,117.24,4.261]
[1644220291169,4.261,117.36,117.21,46.5123]
[1644220291572,33.52414611,117.37,117.22,4.263]
[1644220291771,24.6586109,117.37,117.23,23.8616]
[1644220291970,12.7925,117.35,117.24,17.67593589]
[1644220292171,42.40373642,117.34,117.24,17.67593589]
[1644220292369,40.24834732,117.34,117.24,17.67593589]
[1644220292571,40.49834732,117.34,117.23,23.8616]
[1644220293169,52.78834732,117.34,117.23,23.8616]
[1644220293570,52.78834732,117.34,117.24,18.27236814]
[1644220293971,12.54,117.34,117.24,18.27236814]
[1644220294972,36.8614295,117.33,117.24,18.27236814]
[1644220295474,37.1114295,117.33,117.24,18.27236814]
[1644220295672,0.25,117.33,117.24,18.27236814]
[1644220296474,41.7553,117.36,117.24,18.27236814]
[1644220296674,72.51763152,117.36,117.24,18.27236814]
[1644220296874,78.51763152,117.36,117.24,18.27236814]
[1644220297074,55.80343152,117.36,117.24,18.27236814]
[1644220298079,54.33073072,117.34,117.24,18.27236814]
[1644220298276,41.78693072,117.34,117.24,18.27236814]
[1644220298876,0.25,117.34,117.24,18.27236814]
[1644220299577,12.54,117.35,117.24,18.27236814]
[1644220299776,55.48932691,117.35,117.24,18.27236814]
[1644220300585,4.261,117.34,117.24,18.27236814]
[1644220300780,0.25,117.34,117.24,18.27236814]
[1644220301980,43.19932691,117.35,117.24,18.27236814]
[1644220302378,42.94932691,117.35,117.24,18.27236814]
[1644220302781,25.0813,117.36,117.24,18.27236814]
[1644220302980,31.0813,117.36,117.24,18.27236814]
[1644220303382,6.0,117.36,117.24,19.99890296]
[1644220303581,29.8157,117.37,117.24,47.71690296]
[1644220303883,1.18445857,117.39,117.26,6.8320114]
[1644220304084,42.40358421,117.4,117.27,12.29]
[1644220304283,42.40358421,117.4,117.28,18.27236814]
[1644220304584,1.18445857,117.4,117.28,18.27236814]
[1644220304985,0.25,117.4,117.28,18.27236814]
[1644220305185,1.18445857,117.41,117.29,1.72653482]
[1644220305385,1.18445857,117.41,117.29,49.94553482]
[1644220305587,1.18445857,117.42,117.3,6.8320114]
[1644220305792,1.18445857,117.41,117.3,19.3720114]
[1644220305987,1.18445857,117.42,117.3,19.3720114]
[1644220306194,1.18445857,117.42,117.31,23.8162]
[1644220306393,1.18445857,117.42,117.32,17.76062471]
[1644220306693,1.18445857,117.43,117.32,17.76062471]
[1644220306893,1.18445857,117.43,117.32,30.05062471]
[1644220307094,41.33884081,117.44,117.32,30.05062471]
[1644220307294,41.33884081,117.44,117.32,32.03220633]
[1644220307497,47.33884081,117.44,117.32,36.05062471]
[1644220307697,47.33884081,117.44,117.32,36.30062471]
[1644220308097,47.33884081,117.44,117.32,49.07982471]
[1644220308298,7.18445857,117.44,117.32,49.07982471]
[1644220308507,1.18445857,117.44,117.32,36.53982471]
[1644220308708,113.68445857,117.45,117.32,32.27140633]
[1644220308907,1.18445857,117.46,117.33,4.259]
[1644220309107,1.18445857,117.46,117.34,12.7772]
[1644220309307,1.18445857,117.46,117.35,7.34375483]
[1644220309507,46.31000712,117.47,117.35,55.13715483]
[1644220309708,39.31938078,117.45,117.35,55.13715483]
[1644220311110,43.82738078,117.45,117.35,55.13715483]
[1644220311710,43.82738078,117.45,117.35,47.7934]
[1644220312111,45.01183935,117.45,117.35,47.7934]
[1644220312313,43.82738078,117.45,117.35,47.7934]
[1644220312512,2.1056109,117.44,117.32,12.29]
[1644220312812,57.01223954,117.43,117.3,47.25167846]
[1644220313014,57.01223954,117.43,117.3,24.0566]
[1644220313015,62.45669811,117.43,117.3,24.0566]
[1644220313211,2.1056109,117.42,117.3,24.0566]
[1644220313611,44.72223954,117.43,117.3,36.5966]
[1644220313812,44.72223954,117.43,117.3,36.3466]
[1644220314013,44.72223954,117.43,117.31,22.61377509]
[1644220314214,44.72223954,117.43,117.31,46.53097509]
[1644220315214,44.72223954,117.43,117.31,46.78097509]
[1644220315814,44.72223954,117.43,117.31,46.53097509]
[1644220316116,44.72223954,117.43,117.31,46.78097509]
[1644220316818,44.97223954,117.43,117.31,46.78097509]